fUSD/lending_fUSD_20251109
["ID","MTS","AMOUNT","RATE_DAILY","PERIOD"]
[393462606,1762687838344,-151.0,0.00015791,2]
[393462607,1762687838354,-151.0,0.00015791,2]
[393462608,1762687838363,-151.0,0.00015791,2]
[393462609,1762687838373,-151.0,0.00015791,2]
[393462610,1762687838383,-151.0,0.00015791,2]
[393462611,1762687838393,-151.0,0.00015791,2]
[393462612,1762687838403,-151.0,0.00015791,2]
[393462613,1762687838413,-151.0,0.00015791,2]
[393462614,1762687838425,-151.0,0.00015791,2]
[393462615,1762687838435,-151.0,0.00015791,2]
[393462616,1762687838444,-151.0,0.00015791,2]
[393462617,1762687838454,-151.0,0.00015791,2]
[393462618,1762687838464,-151.0,0.00015791,2]
[393462619,1762687838475,-151.0,0.00015791,2]
[393462620,1762687838485,-151.0,0.00015791,2]
[393462621,1762687838495,-151.0,0.00015791,2]
[393462622,1762687838504,-151.0,0.00015791,2]
[393462623,1762687838514,-151.0,0.00015791,2]
[393462624,1762687838524,-151.0,0.00015791,2]
[393462625,1762687838534,-151.0,0.00015791,2]
[393462626,1762687838544,-3505.3880605,0.00015791,2]
[393462627,1762687838554,-285597.6015484,0.00015791,2]
[393462628,1762687838564,-5659.2335587,0.00015791,2]
[393462629,1762687838575,-500.0,0.00015799,2]
[393462630,1762687838584,-150.0,0.00015799,2]
[393462631,1762687838594,-150.0,0.00015799,2]
[393462632,1762687838603,-150.06161149,0.00015799,2]
[393462633,1762687838614,-500.0,0.00015799,2]
[393462634,1762687838624,-502.0,0.00015799,2]
[393462635,1762687838633,-150.0,0.00015799,2]
[393462636,1762687838644,-500.0,0.00015799,2]
[393462637,1762687838654,-500.0,0.00015799,2]
[393462638,1762687838665,-535.9899614,0.00015799,2]
[393462639,1762687838677,-500.0,0.00015799,2]
[393462640,1762687838688,-322982.05852564,0.000158,2]
[393462641,1762687838699,-1000.0,0.000158,2]
[393462642,1762687838709,-500.0,0.00015837,2]
[393462643,1762687838720,-150.0,0.00015837,2]
[393462644,1762687838731,-150.0,0.00015837,2]
[393462645,1762687838742,-500.0,0.00015837,2]
[393462646,1762687838751,-150.0,0.00015837,2]
[393462647,1762687838762,-34048.01693328,0.0001592,2]
[393462648,1762687838772,-151.79941268,0.00015936,2]
[393462649,1762687838782,-152.0138927,0.00015936,2]
[393462650,1762687838792,-500.0,0.00015936,2]
[393462651,1762687838802,-502.0,0.00015936,2]
[393462652,1762687838811,-152.42287237,0.00015936,2]
[393462653,1762687838821,-500.0,0.00015936,2]
[393462654,1762687838831,-344.99560067,0.00015936,2]
[393462655,1762687838842,-35187.11353702,0.00015936,2]
[393462656,1762687838852,-1129.05,0.00015973,2]
[393462657,1762687838864,-150.0,0.00015974,2]
[393462658,1762687838875,-184.0487379,0.00015974,2]
[393462659,1762687838885,-212.74955591,0.00015974,2]
[393462660,1762687838895,-500.0,0.00015974,2]
[393462661,1762687838904,-150.0,0.00015974,2]
[393462662,1762687838915,-914.49076011,0.00016007,2]
[393462663,1762687838927,-151.0,0.00016007,2]
[393462664,1762687838937,-52801.22092752,0.0001601,2]
[393462665,1762687838947,-221.90321254,0.00016016,2]
[393462666,1762687838957,-262.27802841,0.00016073,2]
[393462667,1762687838967,-502.0,0.00016073,2]
[393462668,1762687838978,-500.0,0.00016073,2]
[393462669,1762687838992,-514.74,0.00016082,2]
[393462670,1762687839003,-150.0,0.00016111,2]
[393462671,1762687839013,-150.0,0.00016111,2]
[393462672,1762687839023,-299.99,0.00016116,2]
[393462673,1762687839035,-3652.71,0.00016116,2]
[393462674,1762687839045,-6699.34,0.00016116,2]
[393462675,1762687839056,-6302.78,0.00016116,2]
[393462676,1762687839066,-824.5,0.00016116,2]
[393462677,1762687839076,-1534.38,0.00016116,2]
[393462678,1762687839086,-150.99,0.00016116,2]
[393462679,1762687839096,-344.79,0.00016116,2]
[393462680,1762687839106,-9999.99,0.00016116,2]
[393462681,1762687839116,-1717.38,0.00016116,2]
[393462682,1762687839126,-9999.99,0.00016116,2]
[393462683,1762687839136,-999.99,0.00016116,2]
[393462684,1762687839146,-166.66,0.0001616,2]
[393462685,1762687839156,-34048.01693328,0.00016168,2]
[393462686,1762687839167,-344.99560067,0.00016182,2]
[393462687,1762687839178,-35187.11353702,0.00016182,2]
[393462688,1762687839190,-502.0,0.0001621,2]
[393462689,1762687839200,-500.0,0.0001621,2]
[393462690,1762687839210,-1231.17535916,0.00016221,2]
[393462691,1762687839220,-1129.05,0.00016247,2]
[393462692,1762687839232,-200.0,0.00016248,2]
[393462693,1762687839242,-1000.0,0.00016321,2]
[393462694,1762687839253,-500.0,0.00016321,2]
[393462695,1762687839264,-1000.0,0.00016321,2]
[393462696,1762687839274,-500.0,0.00016321,2]
[393462697,1762687839284,-427.26831172,0.00016321,2]
[393462698,1762687839294,-500.0,0.00016321,2]
[393462699,1762687839305,-1000.0,0.00016321,2]
[393462700,1762687839315,-1000.0,0.00016321,2]
[393462701,1762687839325,-1000.0,0.00016321,2]
[393462702,1762687839334,-664.71039367,0.00016321,2]
[393462703,1762687839344,-502.91315345,0.00016321,2]
[393462704,1762687839353,-290.90535112,0.00016321,2]
[393462705,1762687839364,-1000.0,0.00016321,2]
[393462706,1762687839373,-914.49076011,0.00016322,2]
[393462707,1762687839383,-502.0,0.00016347,2]
[393462708,1762687839393,-500.0,0.00016347,2]
[393462709,1762687839403,-397.82013743,0.000164,2]
[393462710,1762687839413,-34048.01693328,0.00016415,2]
[393462711,1762687839423,-420.0,0.00016416,2]
[393462712,1762687839434,-344.99560067,0.00016427,2]
[393462713,1762687839443,-35187.11353702,0.00016427,2]
[393462714,1762687839453,-500.0,0.00016438,2]
[393462715,1762687839463,-500.0,0.00016438,2]
[393462716,1762687839473,-500.0,0.00016438,2]
[393462717,1762687839483,-500.0,0.00016438,2]
[393462718,1762687839492,-500.0,0.00016438,2]
[393462719,1762687839502,-384.44882869,0.00016438,2]
[393462721,1762687839511,-375.64157914,0.00016438,2]
[393462722,1762687839521,-2120.4,0.00016438,2]
[393462723,1762687839533,-163.36,0.0001644,2]
[393462724,1762687839543,-502.0,0.00016484,2]
[393462725,1762687839554,-500.0,0.00016484,2]
[393462726,1762687839565,-1680.0,0.00016499,2]
[393462727,1762687839575,-15238.06643167,0.000165,2]
[393462728,1762687839586,-268.29172005,0.000165,2]
[393462729,1762687839602,-195.0,0.000165,2]
[393462730,1762687839613,-1810.36614754,0.000165,2]
[393462731,1762687839623,-193.0,0.000165,2]
[393462732,1762687839634,-2500.0,0.000165,2]
[393462733,1762687839644,-300.0,0.000165,2]
[393462734,1762687839653,-195.0,0.000165,2]
[393462735,1762687839663,-367.94241526,0.000165,2]
[393462736,1762687839673,-166.66,0.000165,2]
[393462737,1762687839682,-1231.17535914,0.00016501,2]
[393462738,1762687839692,-1129.05,0.00016521,2]
[393462739,1762687839703,-500.0,0.00016575,2]
[393462740,1762687839713,-356.68796446,0.000166,2]
[393462741,1762687839722,-999.0,0.00016605,3]
[393462742,1762687839732,-502.0,0.00016621,2]
[393462743,1762687839742,-500.0,0.00016621,2]
[393462744,1762687839752,-1923.62489626,0.00016634,2]
[393462745,1762687839762,-914.49076011,0.00016638,2]
[393462746,1762687839772,-34048.01693328,0.00016663,2]
[393462747,1762687839783,-344.99560067,0.00016673,2]
[393462748,1762687839793,-35187.11353702,0.00016673,2]
[393462749,1762687839803,-204.70898309,0.00016712,2]
[393462750,1762687839813,-191.72,0.00016712,2]
[393462751,1762687839823,-502.0,0.00016758,2]
[393462752,1762687839833,-500.0,0.00016758,2]
[393462753,1762687839843,-1231.17535914,0.00016781,2]
[393462754,1762687839853,-1129.05,0.00016795,2]
[393462755,1762687839862,-510.0,0.0001682,2]
[393462756,1762687839872,-166.66,0.00016841,2]
[393462757,1762687839882,-1500.0,0.00016868,2]
[393462758,1762687839893,-1500.0,0.00016868,2]
[393462760,1762687839903,-500.0,0.00016868,2]
[393462762,1762687839912,-560.6806068,0.00016868,2]
[393462764,1762687839923,-1500.0,0.00016868,2]
[393462766,1762687839933,-502.0,0.00016895,2]
[393462768,1762687839943,-500.0,0.00016895,2]
[393462770,1762687839953,-2300.0,0.000169,6]
[393462771,1762687839963,-34048.01693328,0.0001691,2]
[393462772,1762687839973,-344.99560067,0.00016918,2]
[393462773,1762687839986,-35187.11353702,0.00016918,2]
[393462774,1762687839995,-2618.92325185,0.00016935,2]
[393462775,1762687840005,-200.0,0.00016948,2]
[393462776,1762687840015,-914.49076011,0.00016953,2]
[393462777,1762687840025,-500.0,0.00016973,2]
[393462778,1762687840035,-500.0,0.00016973,2]
[393462779,1762687840045,-500.97801948,0.00016973,2]
[393462780,1762687840055,-151.0,0.00016983,2]
[393462781,1762687840066,-262878.16,0.00016986,2]
[393462782,1762687840076,-500.0,0.00016989,2]
[393462783,1762687840085,-89306.62042061,0.0001699,2]
[393462784,1762687840094,-151.0,0.0001699,2]
[393462785,1762687840105,-151.0,0.0001699,2]
[393462786,1762687840115,-151.0,0.0001699,2]
[393462787,1762687840124,-4451.081586,0.0001699,2]
[393462788,1762687840133,-151.0,0.0001699,2]
[393462789,1762687840142,-4451.081586,0.0001699,2]
[393462790,1762687840151,-151.0,0.0001699,2]
[393462791,1762687840160,-4451.081586,0.0001699,2]
[393462792,1762687840170,-166.384495,0.0001699,2]
[393462793,1762687840180,-151.0,0.0001699,2]
[393462794,1762687840189,-151.0,0.0001699,2]
[393462795,1762687840198,-240.113776,0.0001699,2]
[393462796,1762687840207,-4451.081586,0.0001699,2]
[393462797,1762687840217,-151.0,0.0001699,2]
[393462798,1762687840226,-151.792528,0.0001699,2]
[393462799,1762687840237,-250.0,0.00017,2]
[393462800,1762687840247,-773.40284833,0.00017,2]
[393462801,1762687840257,-160.0,0.00017,2]
[393462802,1762687840266,-795.0,0.00017005,2]
[393462803,1762687840276,-250.0,0.00017011,2]
[393462804,1762687840286,-5286.27,0.00017011,2]
[393462805,1762687840295,-666.17883268,0.00017022,2]
[393462806,1762687840304,-1000.0,0.00017031,2]
[393462807,1762687840314,-1000.0,0.00017031,2]
[393462808,1762687840323,-1000.0,0.00017031,2]
[393462809,1762687840332,-502.0,0.00017032,2]
[393462810,1762687840341,-500.0,0.00017032,2]
[393462811,1762687840352,-352.27,0.00017037,2]
[393462812,1762687840362,-795.0,0.00017039,2]
[393462813,1762687840372,-300.0,0.0001705,2]
[393462814,1762687840382,-195.0,0.0001705,2]
[393462815,1762687840391,-250.0,0.0001705,2]
[393462816,1762687840401,-300.0,0.0001705,2]
[393462817,1762687840411,-431.0373577,0.0001705,2]
[393462818,1762687840420,-193.0,0.0001705,2]
[393462819,1762687840549,-300.0,0.0001705,2]
[393462820,1762687840561,-300.0,0.0001705,2]
[393462821,1762687840570,-300.0,0.0001705,2]
[393462822,1762687840579,-300.0,0.0001705,2]
[393462823,1762687840588,-418.66940604,0.0001705,2]
[393462824,1762687840597,-1231.17535914,0.00017061,2]
[393462825,1762687840607,-1129.05,0.00017069,2]
[393462826,1762687840616,-795.0,0.00017086,2]
[393462827,1762687840626,-344.99560067,0.00017164,2]
[393462828,1762687840635,-35187.11353702,0.00017164,2]
[393462829,1762687840645,-647.0,0.00017164,2]
[393462830,1762687840654,-795.0,0.00017165,2]
[393462831,1762687840664,-151.0,0.00017166,2]
[393462832,1762687840673,-151.0,0.00017166,2]
[393462833,1762687840683,-151.0,0.00017166,2]
[393462834,1762687840692,-274.681251,0.00017166,2]
[393462835,1762687840701,-151.0,0.00017166,2]
[393462836,1762687840711,-166.763674,0.00017166,2]
[393462837,1762687840720,-151.0,0.00017166,2]
[393462838,1762687840729,-151.0,0.00017166,2]
[393462839,1762687840752,-151.0,0.00017166,2]
[393462840,1762687840761,-720.147493,0.00017166,2]
[393462841,1762687840771,-151.0,0.00017166,2]
[393462842,1762687840780,-151.0,0.00017166,2]
[393462843,1762687840790,-151.0,0.00017166,2]
[393462844,1762687840800,-151.0,0.00017166,2]
[393462845,1762687840809,-179.978429,0.00017166,2]
[393462846,1762687840819,-720.147493,0.00017166,2]
[393462847,1762687840828,-151.0,0.00017166,2]
[393462848,1762687840839,-151.0,0.00017166,2]
[393462849,1762687840849,-720.147493,0.00017166,2]
[393462850,1762687840859,-151.0,0.00017166,2]
[393462851,1762687840869,-151.0,0.00017166,2]
[393462852,1762687840880,-720.147493,0.00017166,2]
[393462853,1762687840890,-165.304444,0.00017166,2]
[393462854,1762687840900,-151.0,0.00017166,2]
[393462855,1762687840910,-1048.266309,0.00017166,2]
[393462856,1762687840920,-151.0,0.00017166,2]
[393462857,1762687840930,-1048.266309,0.00017166,2]
[393462858,1762687840940,-151.0,0.00017166,2]
[393462859,1762687840949,-1048.266309,0.00017166,2]
[393462860,1762687840959,-151.0,0.00017166,2]
[393462861,1762687840968,-1048.266309,0.00017166,2]
[393462862,1762687840977,-153.618254,0.00017166,2]
[393462863,1762687840991,-151.0,0.00017166,2]
[393462864,1762687841000,-151.0,0.00017166,2]
[393462865,1762687841009,-153.618254,0.00017166,2]
[393462866,1762687841019,-153.618254,0.00017166,2]
[393462867,1762687841028,-151.0,0.00017166,2]
[393462868,1762687841037,-153.618254,0.00017166,2]
[393462869,1762687841047,-151.0,0.00017166,2]
[393462870,1762687841058,-233.617037,0.00017166,2]
[393462871,1762687841070,-151.0,0.00017166,2]
[393462872,1762687841079,-151.0,0.00017166,2]
[393462873,1762687841089,-281.786286,0.00017166,2]
[393462874,1762687841098,-281.786286,0.00017166,2]
[393462875,1762687841107,-151.0,0.00017166,2]
[393462876,1762687841117,-281.786286,0.00017166,2]
[393462877,1762687841126,-151.0,0.00017166,2]
[393462878,1762687841135,-281.786286,0.00017166,2]
[393462879,1762687841144,-166.784343,0.00017166,2]
[393462880,1762687841154,-159.682235,0.00017166,2]
[393462881,1762687841164,-158.424085,0.00017166,2]
[393462882,1762687841173,-151.0,0.00017166,2]
[393462883,1762687841183,-151.0,0.00017166,2]
[393462884,1762687841193,-166.784343,0.00017166,2]
[393462885,1762687841202,-151.0,0.00017166,2]
[393462886,1762687841212,-158.424085,0.00017166,2]
[393462887,1762687841221,-151.0,0.00017166,2]
[393462888,1762687841231,-151.0,0.00017166,2]
[393462889,1762687841241,-166.784343,0.00017166,2]
[393462890,1762687841250,-255.720552,0.00017166,2]
[393462891,1762687841260,-649.096421,0.00017166,2]
[393462892,1762687841270,-151.0,0.00017166,2]
[393462893,1762687841279,-158.424085,0.00017166,2]
[393462894,1762687841289,-151.0,0.00017166,2]
[393462895,1762687841299,-151.0,0.00017166,2]
[393462896,1762687841311,-255.720552,0.00017166,2]
[393462897,1762687841320,-166.784343,0.00017166,2]
[393462898,1762687841329,-649.096421,0.00017166,2]
[393462899,1762687841339,-158.424085,0.00017166,2]
[393462900,1762687841348,-151.0,0.00017166,2]
[393462901,1762687841358,-649.096421,0.00017166,2]
[393462902,1762687841369,-151.0,0.00017166,2]
[393462903,1762687841379,-649.096421,0.00017166,2]
[393462904,1762687841389,-688.396057,0.00017166,2]
[393462905,1762687841398,-255.720552,0.00017166,2]
[393462906,1762687841408,-688.396057,0.00017166,2]
[393462907,1762687841417,-255.720552,0.00017166,2]
[393462908,1762687841428,-688.396057,0.00017166,2]
[393462909,1762687841437,-151.0,0.00017166,2]
[393462910,1762687841447,-151.0,0.00017166,2]
[393462911,1762687841456,-688.396057,0.00017166,2]
[393462912,1762687841465,-298.073251,0.00017166,2]
[393462913,1762687841475,-151.0,0.00017166,2]
[393462914,1762687841485,-151.0,0.00017166,2]
[393462915,1762687841494,-151.0,0.00017166,2]
[393462916,1762687841503,-151.0,0.00017166,2]
[393462917,1762687841513,-151.0,0.00017166,2]
[393462918,1762687841522,-151.0,0.00017166,2]
[393462919,1762687841531,-170.468976,0.00017166,2]
[393462920,1762687841540,-151.0,0.00017166,2]
[393462921,1762687841550,-170.468976,0.00017166,2]
[393462922,1762687841559,-170.468976,0.00017166,2]
[393462923,1762687841569,-995.65575,0.00017166,2]
[393462924,1762687841578,-170.468976,0.00017166,2]
[393462925,1762687841588,-995.65575,0.00017166,2]
[393462926,1762687841597,-995.65575,0.00017166,2]
[393462927,1762687841607,-995.65575,0.00017166,2]
[393462928,1762687841616,-151.0,0.00017166,2]
[393462929,1762687841626,-151.0,0.00017166,2]
[393462930,1762687841635,-151.0,0.00017166,2]
[393462931,1762687841645,-151.0,0.00017166,2]
[393462932,1762687841654,-151.0,0.00017166,2]
[393462933,1762687841664,-696.053668,0.00017166,2]
[393462934,1762687841673,-151.0,0.00017166,2]
[393462935,1762687841683,-151.0,0.00017166,2]
[393462936,1762687841692,-696.053668,0.00017166,2]
[393462937,1762687841702,-166.837852,0.00017166,2]
[393462938,1762687841711,-151.0,0.00017166,2]
[393462939,1762687841720,-696.053668,0.00017166,2]
[393462940,1762687841729,-151.0,0.00017166,2]
[393462941,1762687841739,-151.0,0.00017166,2]
[393462942,1762687841748,-696.053668,0.00017166,2]
[393462943,1762687841758,-151.0,0.00017166,2]
[393462944,1762687841768,-151.0,0.00017166,2]
[393462945,1762687841777,-151.0,0.00017166,2]
[393462946,1762687841786,-151.0,0.00017166,2]
[393462947,1762687841795,-151.0,0.00017166,2]
[393462948,1762687841805,-151.0,0.00017166,2]
[393462949,1762687841814,-151.0,0.00017166,2]
[393462950,1762687841823,-241.372738,0.00017166,2]
[393462951,1762687841833,-151.0,0.00017166,2]
[393462952,1762687841843,-152.775424,0.00017166,2]
[393462953,1762687841852,-1926.880093,0.00017166,2]
[393462954,1762687841861,-241.372738,0.00017166,2]
[393462955,1762687841870,-1926.880093,0.00017166,2]
[393462956,1762687841880,-241.372738,0.00017166,2]
[393462957,1762687841890,-1926.880093,0.00017166,2]
[393462958,1762687841899,-241.372738,0.00017166,2]
[393462959,1762687841908,-1926.880093,0.00017166,2]
[393462960,1762687841918,-151.0,0.00017166,2]
[393462961,1762687841928,-176.311602,0.00017166,2]
[393462962,1762687841938,-151.0,0.00017166,2]
[393462963,1762687841948,-176.311602,0.00017166,2]
[393462964,1762687841957,-151.0,0.00017166,2]
[393462965,1762687841967,-176.311602,0.00017166,2]
[393462966,1762687841977,-151.0,0.00017166,2]
[393462967,1762687841990,-176.311602,0.00017166,2]
[393462968,1762687842000,-151.0,0.00017166,2]
[393462969,1762687842010,-151.0,0.00017166,2]
[393462970,1762687842019,-151.0,0.00017166,2]
[393462971,1762687842029,-151.0,0.00017166,2]
[393462972,1762687842038,-151.0,0.00017166,2]
[393462973,1762687842048,-502.0,0.00017169,2]
[393462974,1762687842058,-500.0,0.00017169,2]
[393462975,1762687842068,-500.0,0.00017173,2]
[393462976,1762687842078,-500.0,0.00017173,2]
[393462977,1762687842087,-166.66,0.00017181,2]
[393462978,1762687842096,-795.0,0.00017224,2]
[393462979,1762687842105,-795.0,0.0001723,2]
[393462980,1762687842114,-2635.9354,0.00017233,2]
[393462981,1762687842123,-795.0,0.00017251,2]
[393462982,1762687842133,-914.49076011,0.00017269,2]
[393462983,1762687842142,-150.0,0.00017277,2]
[393462984,1762687842151,-150.0,0.00017277,2]
[393462985,1762687842161,-150.0,0.00017277,2]
[393462986,1762687842171,-150.0,0.00017277,2]
[393462987,1762687842183,-150.0,0.00017277,2]
[393462988,1762687842192,-150.0,0.00017277,2]
[393462989,1762687842201,-150.0,0.00017277,2]
[393462990,1762687842211,-150.0,0.00017277,2]
[393462991,1762687842221,-206.79233266,0.00017277,2]
[393462992,1762687842230,-500.0,0.00017277,2]
[393462993,1762687842240,-154.7243316,0.00017277,2]
[393462994,1762687842249,-150.0,0.00017277,2]
[393462996,1762687842259,-150.0,0.00017277,2]
[393462999,1762687842268,-5888.0,0.00017285,2]
[393463001,1762687842278,-496.71,0.00017295,2]
[393463003,1762687842288,-3500.0,0.000173,6]
[393463005,1762687842297,-502.0,0.00017306,2]
[393463007,1762687842306,-500.0,0.00017306,2]
[393463009,1762687842316,-1231.17535914,0.0001734,2]
[393463011,1762687842326,-1129.05,0.00017343,2]
[393463013,1762687842336,-500.0,0.00017343,2]
[393463015,1762687842345,-795.0,0.00017352,2]
[393463017,1762687842355,-795.0,0.00017359,2]
[393463019,1762687842364,-4700.0,0.000174,6]
[393463020,1762687842374,-344.99560067,0.00017409,2]
[393463021,1762687842384,-35187.11353702,0.00017409,2]
[393463022,1762687842393,-150.72638159,0.00017414,2]
[393463023,1762687842403,-150.0,0.00017414,2]
[393463024,1762687842412,-150.0,0.00017414,2]
[393463025,1762687842423,-162.35382443,0.00017414,2]
[393463026,1762687842432,-150.0,0.00017414,2]
[393463028,1762687842442,-150.0,0.00017414,2]
[393463030,1762687842452,-153.10084459,0.00017414,2]
[393463032,1762687842462,-150.0,0.00017414,2]
[393463033,1762687842472,-500.0,0.00017414,2]
[393463034,1762687842482,-150.0,0.00017414,2]
[393463035,1762687842491,-150.0,0.00017414,2]
[393463036,1762687842501,-2000.0,0.00017416,2]
[393463037,1762687842510,-500.0,0.00017416,2]
[393463038,1762687842520,-502.0,0.00017443,2]
[393463040,1762687842530,-500.0,0.00017443,2]
[393463042,1762687842540,-2000.0,0.000175,2]
[393463044,1762687842550,-400.46646103,0.000175,2]
[393463047,1762687842559,-5900.0,0.000175,6]
[393463049,1762687842568,-1000.0,0.00017521,2]
[393463051,1762687842577,-166.66,0.00017521,2]
[393463053,1762687842586,-500.0,0.00017525,2]
[393463054,1762687842595,-500.0,0.00017549,2]
[393463056,1762687842604,-795.0,0.0001755,2]
[393463058,1762687842613,-150.0,0.00017551,2]
[393463060,1762687842622,-150.0,0.00017551,2]
[393463062,1762687842631,-150.0,0.00017551,2]
[393463064,1762687842641,-150.0,0.00017551,2]
[393463066,1762687842650,-150.0,0.00017551,2]
[393463068,1762687842659,-500.0,0.00017551,2]
[393463070,1762687842669,-150.0,0.00017551,2]
[393463072,1762687842679,-150.0,0.00017551,2]
[393463074,1762687842688,-399.0,0.00017573,2]
[393463076,1762687842698,-502.0,0.0001758,2]
[393463078,1762687842708,-500.0,0.0001758,2]
[393463079,1762687842718,-914.49076011,0.00017584,2]
[393463081,1762687842727,-1100.0,0.000176,6]
[393463083,1762687842736,-500.0,0.00017605,2]
[393463085,1762687842747,-795.0,0.00017609,2]
[393463087,1762687842756,-1129.08360344,0.00017617,2]
[393463089,1762687842765,-1231.17535914,0.0001762,2]
[393463091,1762687842775,-150.0,0.00017637,2]
[393463092,1762687842783,-150.0,0.00017637,2]
[393463094,1762687842793,-1752.761,0.00017637,2]
[393463096,1762687842802,-151.6,0.00017637,2]
[393463097,1762687842811,-344.99560067,0.00017655,2]
[393463098,1762687842820,-35187.11353702,0.00017655,2]
[393463099,1762687842831,-6803.0,0.00017655,2]
[393463100,1762687842840,-202.0179959,0.00017688,2]
[393463101,1762687842849,-202.51756382,0.00017688,2]
[393463102,1762687842858,-200.0,0.00017688,2]
[393463103,1762687842868,-200.0,0.00017688,2]
[393463104,1762687842876,-150.0,0.00017688,2]
[393463105,1762687842886,-151.17577208,0.00017688,2]
[393463106,1762687842895,-150.0,0.00017688,2]
[393463107,1762687842904,-200.0,0.00017688,2]
[393463108,1762687842914,-1100.0,0.000177,6]
[393463109,1762687842924,-399.0,0.0001771,2]
[393463110,1762687843040,-514.74,0.00017712,2]
[393463111,1762687843049,-502.0,0.00017717,2]
[393463112,1762687843061,-500.0,0.00017717,2]
[393463113,1762687843071,-505.15717151,0.00017721,2]
[393463114,1762687843080,-1000.0,0.00017723,2]
[393463115,1762687843089,-1726.84557519,0.00017744,2]
[393463116,1762687843099,-221.92525619,0.00017767,2]
[393463117,1762687843109,-152.4860232,0.00017774,2]
[393463118,1762687843119,-151.33732429,0.00017774,2]
[393463119,1762687843129,-795.0,0.0001778,2]
[393463120,1762687843139,-2000.0,0.00017781,2]
[393463121,1762687843149,-200.0,0.00017781,2]
[393463122,1762687843158,-1100.0,0.000178,6]
[393463124,1762687843168,-150.0,0.00017808,2]
[393463126,1762687843179,-2333.0,0.00017808,2]
[393463127,1762687843189,-1262.7456902,0.00017813,2]
[393463128,1762687843199,-1000.0,0.00017824,2]
[393463129,1762687843209,-150.0,0.00017825,2]
[393463130,1762687843219,-150.0,0.00017825,2]
[393463131,1762687843228,-1000.0,0.00017851,2]
[393463132,1762687843238,-502.0,0.00017854,2]
[393463133,1762687843247,-590.60868666,0.00017854,2]
[393463134,1762687843258,-795.0,0.00017855,2]
[393463135,1762687843267,-200.0,0.00017855,2]
[393463136,1762687843277,-795.0,0.00017855,2]
[393463137,1762687843287,-166.66,0.00017861,2]
[393463138,1762687843296,-795.0,0.00017873,2]
[393463139,1762687843306,-2500.0,0.00017874,3]
[393463140,1762687843316,-2500.0,0.00017882,3]
[393463141,1762687843326,-2500.0,0.00017891,3]
[393463142,1762687843335,-5000.0,0.00017899,2]
[393463143,1762687843344,-221.90321253,0.00017899,2]
[393463144,1762687843354,-2500.0,0.000179,3]
[393463145,1762687843363,-478.20968403,0.000179,3]
[393463146,1762687843373,-1122.3299085,0.000179,2]
[393463147,1762687843382,-1231.17535914,0.000179,2]
[393463148,1762687843392,-1100.0,0.000179,6]
[393463149,1762687843402,-183.19568061,0.000179,2]
[393463150,1762687843412,-344.99560067,0.000179,2]
[393463151,1762687843421,-1573.31908382,0.000179,2]
[393463152,1762687843432,-570.30698076,0.000179,3]
[393463153,1762687843442,-914.49076011,0.000179,2]
[393463154,1762687843452,-938.63628331,0.000179,2]
[393463155,1762687843461,-449.17052271,0.000179,2]
[393463156,1762687843470,-9233.47716705,0.000179,2]
[393463157,1762687843480,-35187.11353702,0.000179,2]
[393463158,1762687843490,-300.0,0.00017906,2]